[Event "Titled Tuesday Blitz July 11 Late 2023"]
[White "Srdanovic, Jovana"]
[Black "Gazola, Vanessa Ramos"]
[WhiteFideId "954810"]
[BlackFideId "2112590"]
[WhiteElo "2445"]
[BlackElo "2056"]
[Result "1/2-1/2"]
[Round "2"]
[TimeControl "180+2"]
[Date "2023.07.11"]
[WhiteClock "0:00:14"]
[BlackClock "0:00:11"]
[Board "186"]

1. d4 {[%clk 0:03:00]}  d5 {[%clk 0:02:54]} 2. c4 {[%clk 0:03:01]}  e6 {[%clk 0:02:54]} 3. Nc3 {[%clk 0:03:00]}  Be7 {[%clk 0:02:53]} 4. Nf3 {[%clk 0:03:00]}  Nf6 {[%clk 0:02:54]} 5. Bg5 {[%clk 0:02:59]}  h6 {[%clk 0:02:54]} 6. Bh4 {[%clk 0:02:59]}  O-O {[%clk 0:02:54]} 7. e3 {[%clk 0:02:59]}  a6 {[%clk 0:02:50]} 8. cxd5 {[%clk 0:02:59]}  exd5 {[%clk 0:02:49]} 9. Bd3 {[%clk 0:02:59]}  Re8 {[%clk 0:02:32]} 10. Qb3 {[%clk 0:02:56]}  c6 {[%clk 0:02:31]} 11. h3 {[%clk 0:02:36]}  Nbd7 {[%clk 0:02:16]} 12. O-O {[%clk 0:02:22]}  Qb6 {[%clk 0:02:11]} 13. Qc2 {[%clk 0:02:18]}  Nf8 {[%clk 0:02:10]} 14. Rab1 {[%clk 0:02:17]}  a5 {[%clk 0:02:09]} 15. a3 {[%clk 0:02:17]}  Qc7 {[%clk 0:01:53]} 16. Bxf6 {[%clk 0:02:13]}  Bxf6 {[%clk 0:01:42]} 17. Nxd5 {[%clk 0:02:13]}  Qd6 {[%clk 0:01:42]} 18. Nxf6+ {[%clk 0:02:08]}  Qxf6 {[%clk 0:01:43]} 19. b4 {[%clk 0:02:05]}  axb4 {[%clk 0:01:42]} 20. axb4 {[%clk 0:02:04]}  Ne6 {[%clk 0:01:39]} 21. b5 {[%clk 0:02:00]}  Nd8 {[%clk 0:01:31]} 22. Ne5 {[%clk 0:01:53]}  Qg5 {[%clk 0:01:17]} 23. f4 {[%clk 0:01:43]}  Qf6 {[%clk 0:01:09]} 24. Be4 {[%clk 0:01:38]}  cxb5 {[%clk 0:01:07]} 25. Rxb5 {[%clk 0:01:37]}  Qa6 {[%clk 0:00:57]} 26. Rfb1 {[%clk 0:01:34]}  f6 {[%clk 0:00:47]} 27. Bd5+ {[%clk 0:01:19]}  Be6 {[%clk 0:00:35]} 28. Bxe6+ {[%clk 0:01:09]}  Rxe6 {[%clk 0:00:32]} 29. Nd7 {[%clk 0:00:55]}  Rxe3 {[%clk 0:00:30]} 30. Nc5 {[%clk 0:00:50]}  Qd6 {[%clk 0:00:21]} 31. Nxb7 {[%clk 0:00:43]}  Nxb7 {[%clk 0:00:19]} 32. Rxb7 {[%clk 0:00:44]}  Qxf4 {[%clk 0:00:16]} 33. Kh1 {[%clk 0:00:30]}  Qg5 {[%clk 0:00:13]} 34. Rb8+ {[%clk 0:00:26]}  Rxb8 {[%clk 0:00:12]} 35. Rxb8+ {[%clk 0:00:27]}  Kf7 {[%clk 0:00:13]} 36. Rb7+ {[%clk 0:00:20]}  Kg8 {[%clk 0:00:10]} 37. Rb8+ {[%clk 0:00:18]}  Kf7 {[%clk 0:00:11]} 38. Qa2+ {[%clk 0:00:17]}  Kg6 {[%clk 0:00:10]} 39. Qb1+ {[%clk 0:00:17]}  Qf5 {[%clk 0:00:09]} 40. d5 {[%clk 0:00:14]}  Rd3 {[%clk 0:00:06]} 41. Rb7 {[%clk 0:00:10]}  Rxd5 {[%clk 0:00:05]} 42. Qg1 {[%clk 0:00:09]}  Qe5 {[%clk 0:00:04]} 43. Qf2 {[%clk 0:00:09]}  Qf5 {[%clk 0:00:04]} 44. Qxf5+ {[%clk 0:00:09]}  Rxf5 {[%clk 0:00:04]} 45. Rb3 {[%clk 0:00:10]}  Rf1+ {[%clk 0:00:04]} 46. Kh2 {[%clk 0:00:10]}  Rf2 {[%clk 0:00:05]} 47. Rg3+ {[%clk 0:00:10]}  Kf7 {[%clk 0:00:04]} 48. Rb3 {[%clk 0:00:11]}  g5 {[%clk 0:00:05]} 49. Kg3 {[%clk 0:00:12]}  Re2 {[%clk 0:00:05]} 50. Kf3 {[%clk 0:00:12]}  Re5 {[%clk 0:00:05]} 51. Rb7+ {[%clk 0:00:12]}  Kg6 {[%clk 0:00:06]} 52. Rb8 {[%clk 0:00:12]}  h5 {[%clk 0:00:06]} 53. Rg8+ {[%clk 0:00:12]}  Kf7 {[%clk 0:00:07]} 54. Rh8 {[%clk 0:00:13]}  h4 {[%clk 0:00:07]} 55. Rh7+ {[%clk 0:00:12]}  Kg6 {[%clk 0:00:07]} 56. Ra7 {[%clk 0:00:13]}  Kf5 {[%clk 0:00:08]} 57. Ra6 {[%clk 0:00:13]}  Rd5 {[%clk 0:00:08]} 58. Ra8 {[%clk 0:00:13]}  Rc5 {[%clk 0:00:08]} 59. Ra7 {[%clk 0:00:13]}  Rc3+ {[%clk 0:00:08]} 60. Kf2 {[%clk 0:00:13]}  Rc2+ {[%clk 0:00:09]} 61. Kf3 {[%clk 0:00:13]}  Rc3+ {[%clk 0:00:09]} 62. Kf2 {[%clk 0:00:13]}  Rc2+ {[%clk 0:00:10]} 63. Kg1 {[%clk 0:00:14]}  Rc1+ {[%clk 0:00:08]} 64. Kh2 {[%clk 0:00:14]}  Rc5 {[%clk 0:00:09]} 65. Ra4 {[%clk 0:00:14]}  Re5 {[%clk 0:00:09]} 66. Ra3 {[%clk 0:00:14]}  Kg6 {[%clk 0:00:09]} 67. Ra8 {[%clk 0:00:14]}  Kf5 {[%clk 0:00:10]} 68. Rg8 {[%clk 0:00:14]}  Re2 {[%clk 0:00:10]} 69. Rf8 {[%clk 0:00:14]}  Kg6 {[%clk 0:00:10]} 70. Rg8+ {[%clk 0:00:14]}  Kf5 {[%clk 0:00:10]} 71. Ra8 {[%clk 0:00:15]}  Kf4 {[%clk 0:00:09]} 72. Rf8 {[%clk 0:00:15]}  f5 {[%clk 0:00:09]} 73. Ra8 {[%clk 0:00:15]}  Re4 {[%clk 0:00:10]} 74. Ra3 {[%clk 0:00:15]}  g4 {[%clk 0:00:10]} 75. hxg4 {[%clk 0:00:15]}  fxg4 {[%clk 0:00:11]} 76. Ra8 {[%clk 0:00:14]}  Kg5 {[%clk 0:00:10]} 77. Rg8+ {[%clk 0:00:14]}  Kf4 {[%clk 0:00:10]} 78. Rf8+ {[%clk 0:00:13]}  Ke3 {[%clk 0:00:10]} 79. Rh8 {[%clk 0:00:13]}  h3 {[%clk 0:00:10]} 80. gxh3 {[%clk 0:00:13]}  gxh3 {[%clk 0:00:10]} 81. Rxh3+ {[%clk 0:00:13]}  Kd4 {[%clk 0:00:11]} 82. Kg3 {[%clk 0:00:13]}  Re3+ {[%clk 0:00:10]} 83. Kg2 {[%clk 0:00:14]}  Rxh3 {[%clk 0:00:11]} 84. Kxh3 {[%clk 0:00:14]} 1/2-1/2


[Site "https://www.chess.com"]

[Event "Titled Tuesday Blitz July 11 Late 2023"]
[White "Cruz Gomez, Miguel Angel"]
[Black "Bueno, Alfeu Junior Varela"]
[WhiteFideId "5137160"]
[BlackFideId "2108879"]
[WhiteElo "1974"]
[BlackElo "2429"]
[Result "0-1"]
[Round "2"]
[TimeControl "180+2"]
[Date "2023.07.11"]
[WhiteClock "0:01:14"]
[BlackClock "0:01:44"]
[Board "192"]

1. Nf3 {[%clk 0:03:00]}  e6 {[%clk 0:03:00]} 2. d4 {[%clk 0:02:51]}  f5 {[%clk 0:02:59]} 3. Bg5 {[%clk 0:02:48]}  Be7 {[%clk 0:02:59]} 4. h4 {[%clk 0:02:33]}  Nf6 {[%clk 0:02:58]} 5. Bxf6 {[%clk 0:02:33]}  Bxf6 {[%clk 0:02:58]} 6. Nbd2 {[%clk 0:02:31]}  c5 {[%clk 0:02:52]} 7. e3 {[%clk 0:02:27]}  O-O {[%clk 0:02:48]} 8. c3 {[%clk 0:02:23]}  Nc6 {[%clk 0:02:47]} 9. Bb5 {[%clk 0:02:18]}  Qb6 {[%clk 0:02:45]} 10. Bxc6 {[%clk 0:02:17]}  bxc6 {[%clk 0:02:45]} 11. Qc2 {[%clk 0:02:07]}  Ba6 {[%clk 0:02:42]} 12. Nb3 {[%clk 0:02:01]}  cxd4 {[%clk 0:02:34]} 13. exd4 {[%clk 0:02:00]}  Bc4 {[%clk 0:02:24]} 14. Nfd2 {[%clk 0:01:59]}  Bd5 {[%clk 0:02:22]} 15. f3 {[%clk 0:01:59]}  e5 {[%clk 0:02:13]} 16. c4 {[%clk 0:01:33]}  Bf7 {[%clk 0:01:59]} 17. dxe5 {[%clk 0:01:33]}  Bxe5 {[%clk 0:02:00]} 18. O-O-O {[%clk 0:01:33]}  a5 {[%clk 0:01:59]} 19. c5 {[%clk 0:01:29]}  Qb4 {[%clk 0:01:52]} 20. h5 {[%clk 0:01:14]}  a4 {[%clk 0:01:44]} 0-1


[Site "https://www.chess.com"]

[Event "Titled Tuesday Blitz July 11 Late 2023"]
[White "Burke, Paul"]
[Black "Rodriguez Fontecha, Marcos"]
[WhiteFideId "2605767"]
[BlackFideId "2256576"]
[WhiteElo "1893"]
[BlackElo "2423"]
[Result "0-1"]
[Round "2"]
[TimeControl "180+2"]
[Date "2023.07.11"]
[WhiteClock "0:00:04"]
[BlackClock "0:00:03"]
[Board "194"]

1. e4 {[%clk 0:03:00]}  c5 {[%clk 0:02:56]} 2. Nf3 {[%clk 0:03:00]}  e6 {[%clk 0:02:56]} 3. d4 {[%clk 0:03:00]}  cxd4 {[%clk 0:02:57]} 4. c3 {[%clk 0:03:00]}  d3 {[%clk 0:02:54]} 5. Bxd3 {[%clk 0:02:59]}  Nc6 {[%clk 0:02:55]} 6. Bf4 {[%clk 0:02:59]}  d6 {[%clk 0:02:54]} 7. O-O {[%clk 0:02:58]}  Nf6 {[%clk 0:02:52]} 8. Qe2 {[%clk 0:02:58]}  Be7 {[%clk 0:02:52]} 9. Rd1 {[%clk 0:02:57]}  e5 {[%clk 0:02:51]} 10. Be3 {[%clk 0:02:55]}  O-O {[%clk 0:02:51]} 11. h3 {[%clk 0:02:55]}  a6 {[%clk 0:02:46]} 12. Na3 {[%clk 0:02:54]}  Qc7 {[%clk 0:02:43]} 13. Rac1 {[%clk 0:02:53]}  b5 {[%clk 0:02:41]} 14. Bb1 {[%clk 0:02:47]}  Be6 {[%clk 0:02:27]} 15. c4 {[%clk 0:02:40]}  b4 {[%clk 0:02:26]} 16. Nc2 {[%clk 0:02:40]}  Rab8 {[%clk 0:02:17]} 17. b3 {[%clk 0:02:39]}  Nd7 {[%clk 0:02:07]} 18. Bd2 {[%clk 0:02:24]}  Nc5 {[%clk 0:02:02]} 19. Ne3 {[%clk 0:02:21]}  a5 {[%clk 0:01:49]} 20. Nd5 {[%clk 0:02:20]}  Bxd5 {[%clk 0:01:36]} 21. exd5 {[%clk 0:02:19]}  Nd8 {[%clk 0:01:30]} 22. Be3 {[%clk 0:02:11]}  f5 {[%clk 0:01:27]} 23. Bxc5 {[%clk 0:01:57]}  Qxc5 {[%clk 0:01:26]} 24. Ne1 {[%clk 0:01:41]}  e4 {[%clk 0:01:20]} 25. Nc2 {[%clk 0:01:24]}  Bf6 {[%clk 0:01:20]} 26. Ne3 {[%clk 0:01:23]}  Be5 {[%clk 0:01:13]} 27. g4 {[%clk 0:01:19]}  f4 {[%clk 0:00:59]} 28. Nf5 {[%clk 0:01:18]}  Nf7 {[%clk 0:00:37]} 29. Ne7+ {[%clk 0:01:02]}  Kh8 {[%clk 0:00:34]} 30. Qxe4 {[%clk 0:01:02]}  Ng5 {[%clk 0:00:34]} 31. Qd3 {[%clk 0:00:51]}  Rbe8 {[%clk 0:00:21]} 32. h4 {[%clk 0:00:43]}  Rxe7 {[%clk 0:00:16]} 33. hxg5 {[%clk 0:00:43]}  g6 {[%clk 0:00:16]} 34. Re1 {[%clk 0:00:36]}  Ref7 {[%clk 0:00:09]} 35. Qh3 {[%clk 0:00:33]}  Bd4 {[%clk 0:00:07]} 36. Re6 {[%clk 0:00:22]}  Bxf2+ {[%clk 0:00:05]} 37. Kf1 {[%clk 0:00:21]}  Bg3 {[%clk 0:00:05]} 38. Rc2 {[%clk 0:00:19]}  Qd4 {[%clk 0:00:04]} 39. Rxg6 {[%clk 0:00:12]}  Qd1+ {[%clk 0:00:04]} 40. Kg2 {[%clk 0:00:10]}  Qxb1 {[%clk 0:00:03]} 41. Re6 {[%clk 0:00:04]}  Qxc2+ {[%clk 0:00:03]} 0-1


[Site "https://www.chess.com"]

[Event "Titled Tuesday Blitz July 11 Late 2023"]
[White "Melikhov, Evgeny V."]
[Black "Gyulamiryan-koryun"]
[WhiteFideId "4122046"]
[WhiteElo "2415"]
[BlackElo "1858"]
[Result "1-0"]
[Round "2"]
[TimeControl "180+2"]
[Date "2023.07.11"]
[WhiteClock "0:00:48"]
[BlackClock "0:00:00"]
[Board "196"]

1. d4 {[%clk 0:03:00]}  Nf6 {[%clk 0:02:54]} 2. c4 {[%clk 0:02:59]}  c5 {[%clk 0:02:52]} 3. d5 {[%clk 0:02:59]}  b5 {[%clk 0:02:51]} 4. cxb5 {[%clk 0:02:59]}  a6 {[%clk 0:02:51]} 5. b6 {[%clk 0:02:59]}  d6 {[%clk 0:02:49]} 6. Nc3 {[%clk 0:02:59]}  Nbd7 {[%clk 0:02:46]} 7. a4 {[%clk 0:02:59]}  Nxb6 {[%clk 0:02:44]} 8. a5 {[%clk 0:02:58]}  Nbd7 {[%clk 0:02:39]} 9. e4 {[%clk 0:02:58]}  g6 {[%clk 0:02:35]} 10. Nf3 {[%clk 0:02:57]}  Bg7 {[%clk 0:02:34]} 11. Be2 {[%clk 0:02:58]}  O-O {[%clk 0:02:33]} 12. O-O {[%clk 0:02:59]}  Ng4 {[%clk 0:02:31]} 13. Nd2 {[%clk 0:02:58]}  Ngf6 {[%clk 0:02:19]} 14. Nc4 {[%clk 0:02:57]}  Rb8 {[%clk 0:02:11]} 15. Bd2 {[%clk 0:02:44]}  Ne5 {[%clk 0:01:54]} 16. Nb6 {[%clk 0:02:41]}  Rxb6 {[%clk 0:01:52]} 17. axb6 {[%clk 0:02:41]}  Qxb6 {[%clk 0:01:52]} 18. Na4 {[%clk 0:02:36]}  Qa7 {[%clk 0:01:45]} 19. Qc2 {[%clk 0:02:21]}  Bg4 {[%clk 0:01:32]} 20. Rfe1 {[%clk 0:02:19]}  Rb8 {[%clk 0:01:23]} 21. Ra2 {[%clk 0:02:15]}  Bxe2 {[%clk 0:01:18]} 22. Rxe2 {[%clk 0:02:15]}  c4 {[%clk 0:01:14]} 23. Be3 {[%clk 0:02:10]}  Qb7 {[%clk 0:01:08]} 24. Bd4 {[%clk 0:02:10]}  Nfd7 {[%clk 0:01:05]} 25. Kh1 {[%clk 0:02:00]}  Qb3 {[%clk 0:01:04]} 26. Qxb3 {[%clk 0:01:56]}  cxb3 {[%clk 0:01:02]} 27. Ra3 {[%clk 0:01:53]}  Nc4 {[%clk 0:00:51]} 28. Bxg7 {[%clk 0:01:51]}  Nxa3 {[%clk 0:00:50]} 29. Bd4 {[%clk 0:01:40]}  Nc4 {[%clk 0:00:45]} 30. Nc3 {[%clk 0:01:34]}  f6 {[%clk 0:00:34]} 31. f4 {[%clk 0:01:33]}  Rb4 {[%clk 0:00:30]} 32. Bf2 {[%clk 0:01:26]}  a5 {[%clk 0:00:18]} 33. Be1 {[%clk 0:01:22]}  Rb8 {[%clk 0:00:12]} 34. Nb1 {[%clk 0:01:18]}  a4 {[%clk 0:00:11]} 35. Bc3 {[%clk 0:01:15]}  Nc5 {[%clk 0:00:10]} 36. g4 {[%clk 0:01:02]}  Kf7 {[%clk 0:00:09]} 37. h4 {[%clk 0:01:00]}  h6 {[%clk 0:00:08]} 38. Kg2 {[%clk 0:00:59]}  Nd3 {[%clk 0:00:07]} 39. Kf3 {[%clk 0:00:56]}  Nc1 {[%clk 0:00:04]} 40. Rh2 {[%clk 0:00:51]}  Na2 {[%clk 0:00:00]} 41. Bd4 {[%clk 0:00:48]} 1-0


[Site "https://www.chess.com"]

[Event "Titled Tuesday Blitz July 11 Late 2023"]
[White "Perez Ponsa, Federico"]
[Black "Carlsen, Magnus"]
[WhiteFideId "117927"]
[BlackFideId "1503014"]
[WhiteElo "2789"]
[BlackElo "3284"]
[Result "0-1"]
[Round "3"]
[TimeControl "180+2"]
[Date "2023.07.11"]
[WhiteClock "0:00:04"]
[BlackClock "0:00:04"]
[Board "1"]

1. e4 {[%clk 0:02:52]}  a6 {[%clk 0:02:47]} 2. d4 {[%clk 0:02:50]}  c6 {[%clk 0:02:45]} 3. Nf3 {[%clk 0:02:45]}  d5 {[%clk 0:02:44]} 4. Nc3 {[%clk 0:02:45]}  Bg4 {[%clk 0:02:43]} 5. h3 {[%clk 0:02:44]}  Bh5 {[%clk 0:02:40]} 6. Bd3 {[%clk 0:02:39]}  e6 {[%clk 0:02:39]} 7. g4 {[%clk 0:02:36]}  Bg6 {[%clk 0:02:38]} 8. h4 {[%clk 0:02:36]}  Nf6 {[%clk 0:02:34]} 9. exd5 {[%clk 0:02:35]}  cxd5 {[%clk 0:02:31]} 10. Ne5 {[%clk 0:02:32]}  Bxd3 {[%clk 0:02:30]} 11. cxd3 {[%clk 0:02:32]}  Nfd7 {[%clk 0:02:27]} 12. Bf4 {[%clk 0:02:30]}  Qb6 {[%clk 0:02:18]} 13. Qa4 {[%clk 0:02:23]}  Qxb2 {[%clk 0:01:12]} 14. Rc1 {[%clk 0:01:57]}  Bb4 {[%clk 0:01:08]} 15. O-O {[%clk 0:01:40]}  Bxc3 {[%clk 0:01:03]} 16. Rxc3 {[%clk 0:01:40]}  Qxc3 {[%clk 0:00:31]} 17. Rc1 {[%clk 0:01:39]}  Qxc1+ {[%clk 0:00:29]} 18. Bxc1 {[%clk 0:01:40]}  O-O {[%clk 0:00:20]} 19. Ba3 {[%clk 0:01:31]}  Rd8 {[%clk 0:00:16]} 20. Be7 {[%clk 0:01:19]}  Re8 {[%clk 0:00:12]} 21. Nxd7 {[%clk 0:00:55]}  b5 {[%clk 0:00:11]} 22. Nf6+ {[%clk 0:00:54]}  gxf6 {[%clk 0:00:11]} 23. Qa3 {[%clk 0:00:54]}  Nd7 {[%clk 0:00:09]} 24. g5 {[%clk 0:00:49]}  fxg5 {[%clk 0:00:08]} 25. hxg5 {[%clk 0:00:49]}  Nf8 {[%clk 0:00:07]} 26. Qd6 {[%clk 0:00:43]}  Ng6 {[%clk 0:00:07]} 27. Bf6 {[%clk 0:00:44]}  Nh4 {[%clk 0:00:07]} 28. g6 {[%clk 0:00:23]}  Nf5 {[%clk 0:00:07]} 29. gxh7+ {[%clk 0:00:12]}  Kxh7 {[%clk 0:00:07]} 30. Qh2+ {[%clk 0:00:12]}  Kg6 {[%clk 0:00:07]} 31. Be5 {[%clk 0:00:13]}  f6 {[%clk 0:00:07]} 32. Bc7 {[%clk 0:00:13]}  Rh8 {[%clk 0:00:06]} 33. Qf4 {[%clk 0:00:10]}  Kf7 {[%clk 0:00:07]} 34. Bb6 {[%clk 0:00:09]}  Rag8+ {[%clk 0:00:06]} 35. Kf1 {[%clk 0:00:10]}  Rh1+ {[%clk 0:00:05]} 36. Ke2 {[%clk 0:00:10]}  Rgg1 {[%clk 0:00:05]} 37. Qc7+ {[%clk 0:00:10]}  Kg6 {[%clk 0:00:05]} 38. Ba5 {[%clk 0:00:10]}  Nxd4+ {[%clk 0:00:04]} 39. Ke3 {[%clk 0:00:11]}  Nf5+ {[%clk 0:00:04]} 40. Ke2 {[%clk 0:00:11]}  Ra1 {[%clk 0:00:04]} 41. Qd8 {[%clk 0:00:07]}  Rxa2+ {[%clk 0:00:04]} 42. Kf3 {[%clk 0:00:08]}  Rh3+ {[%clk 0:00:04]} 43. Kg2 {[%clk 0:00:07]}  Rg3+ {[%clk 0:00:04]} 44. Kf1 {[%clk 0:00:07]}  Rf3 {[%clk 0:00:05]} 45. Qg8+ {[%clk 0:00:07]}  Ng7 {[%clk 0:00:05]} 46. Bb6 {[%clk 0:00:08]}  b4 {[%clk 0:00:05]} 47. Qc8 {[%clk 0:00:08]}  b3 {[%clk 0:00:04]} 48. Qc3 {[%clk 0:00:07]}  b2 {[%clk 0:00:04]} 49. Kg2 {[%clk 0:00:03]}  b1=Q {[%clk 0:00:04]} 50. Kxf3 {[%clk 0:00:04]}  Qd1+ {[%clk 0:00:04]} 51. Kg3 {[%clk 0:00:04]}  Rc2 {[%clk 0:00:05]} 52. Qd4 {[%clk 0:00:04]}  Qg1+ {[%clk 0:00:05]} 53. Kf3 {[%clk 0:00:05]}  Qd1+ {[%clk 0:00:05]} 54. Kg3 {[%clk 0:00:04]}  Nf5+ {[%clk 0:00:04]} 0-1


[Site "https://www.chess.com"]

[Event "Titled Tuesday Blitz July 11 Late 2023"]
[White "Tristan, Leonardo"]
[Black "Caruana, Fabiano"]
[WhiteFideId "113816"]
[BlackFideId "2020009"]
[WhiteElo "2781"]
[BlackElo "3121"]
[Result "1-0"]
[Round "3"]
[TimeControl "180+2"]
[Date "2023.07.11"]
[WhiteClock "0:00:03"]
[BlackClock "0:00:00"]
[Board "3"]

1. d4 {[%clk 0:03:00]}  d6 {[%clk 0:02:58]} 2. e4 {[%clk 0:03:00]}  Nf6 {[%clk 0:02:58]} 3. Nc3 {[%clk 0:03:00]}  g6 {[%clk 0:02:58]} 4. f4 {[%clk 0:03:00]}  c6 {[%clk 0:02:56]} 5. Nf3 {[%clk 0:02:55]}  b5 {[%clk 0:02:55]} 6. Bd3 {[%clk 0:02:55]}  b4 {[%clk 0:02:54]} 7. Ne2 {[%clk 0:02:56]}  Bg7 {[%clk 0:02:53]} 8. O-O {[%clk 0:02:55]}  a5 {[%clk 0:02:52]} 9. e5 {[%clk 0:02:53]}  Nd5 {[%clk 0:02:51]} 10. Ng3 {[%clk 0:02:49]}  Ba6 {[%clk 0:02:47]} 11. f5 {[%clk 0:02:42]}  dxe5 {[%clk 0:02:23]} 12. dxe5 {[%clk 0:02:41]}  Bxd3 {[%clk 0:02:23]} 13. Qxd3 {[%clk 0:02:41]}  Nd7 {[%clk 0:02:23]} 14. e6 {[%clk 0:02:34]}  fxe6 {[%clk 0:02:23]} 15. fxg6 {[%clk 0:02:21]}  Qb6+ {[%clk 0:02:12]} 16. Kh1 {[%clk 0:02:20]}  Nc5 {[%clk 0:02:09]} 17. Qc4 {[%clk 0:02:12]}  hxg6 {[%clk 0:02:07]} 18. Qg4 {[%clk 0:02:02]}  O-O-O {[%clk 0:02:05]} 19. Ne4 {[%clk 0:01:37]}  Kb7 {[%clk 0:02:00]} 20. a3 {[%clk 0:01:25]}  Nxe4 {[%clk 0:01:20]} 21. Qxe4 {[%clk 0:01:24]}  Bf6 {[%clk 0:01:14]} 22. axb4 {[%clk 0:01:21]}  axb4 {[%clk 0:01:11]} 23. Qxe6 {[%clk 0:01:20]}  Qb5 {[%clk 0:00:59]} 24. Bg5 {[%clk 0:01:14]}  Bxb2 {[%clk 0:00:57]} 25. Rab1 {[%clk 0:00:44]}  Rd6 {[%clk 0:00:57]} 26. Qf7 {[%clk 0:00:38]}  Bf6 {[%clk 0:00:49]} 27. Bxf6 {[%clk 0:00:22]}  Rxf6 {[%clk 0:00:47]} 28. Qg7 {[%clk 0:00:23]}  Rhf8 {[%clk 0:00:44]} 29. Rfe1 {[%clk 0:00:22]}  R8f7 {[%clk 0:00:37]} 30. Qh6 {[%clk 0:00:23]}  Nc3 {[%clk 0:00:22]} 31. Ra1 {[%clk 0:00:22]}  g5 {[%clk 0:00:16]} 32. Qh8 {[%clk 0:00:19]}  Rf8 {[%clk 0:00:10]} 33. Rxe7+ {[%clk 0:00:13]}  Kb6 {[%clk 0:00:11]} 34. Qg7 {[%clk 0:00:14]}  Kc5 {[%clk 0:00:07]} 35. Qxg5+ {[%clk 0:00:13]}  Nd5 {[%clk 0:00:06]} 36. Qd2 {[%clk 0:00:09]}  Qc4 {[%clk 0:00:05]} 37. Ree1 {[%clk 0:00:03]}  Qc3 {[%clk 0:00:05]} 38. Qf2+ {[%clk 0:00:04]}  Kd6 {[%clk 0:00:05]} 39. Qg3+ {[%clk 0:00:04]}  Kc5 {[%clk 0:00:05]} 40. Qf2+ {[%clk 0:00:05]}  Kd6 {[%clk 0:00:05]} 41. Qg3+ {[%clk 0:00:05]}  Rf4 {[%clk 0:00:04]} 42. Ne5 {[%clk 0:00:04]}  Qxg3 {[%clk 0:00:02]} 43. hxg3 {[%clk 0:00:04]}  Rf2 {[%clk 0:00:02]} 44. Nc4+ {[%clk 0:00:03]}  Kc5 {[%clk 0:00:02]} 45. Ne5 {[%clk 0:00:03]}  Kb5 {[%clk 0:00:01]} 46. Rac1 {[%clk 0:00:02]}  Rh8+ {[%clk 0:00:01]} 47. Kg1 {[%clk 0:00:02]}  Rd2 {[%clk 0:00:02]} 48. Nd3 {[%clk 0:00:03]}  Rxd3 {[%clk 0:00:02]} 49. cxd3 {[%clk 0:00:03]}  Nc3 {[%clk 0:00:01]} 50. Re5+ {[%clk 0:00:03]}  Ka4 {[%clk 0:00:00]} 51. Rc5 {[%clk 0:00:03]} 1-0


[Site "https://www.chess.com"]

[Event "Titled Tuesday Blitz July 11 Late 2023"]
[White "Nepomniachtchi, Ian"]
[Black "Mahdavi, Reza"]
[WhiteFideId "4168119"]
[BlackFideId "12595926"]
[WhiteElo "3114"]
[BlackElo "2773"]
[Result "1-0"]
[Round "3"]
[TimeControl "180+2"]
[Date "2023.07.11"]
[WhiteClock "0:02:06"]
[BlackClock "0:01:51"]
[Board "4"]

1. e4 {[%clk 0:03:00]}  c5 {[%clk 0:03:00]} 2. Nf3 {[%clk 0:03:00]}  d6 {[%clk 0:03:01]} 3. d4 {[%clk 0:03:01]}  cxd4 {[%clk 0:03:01]} 4. Nxd4 {[%clk 0:03:02]}  Nf6 {[%clk 0:03:02]} 5. Nc3 {[%clk 0:03:03]}  a6 {[%clk 0:03:02]} 6. Rg1 {[%clk 0:03:02]}  b5 {[%clk 0:03:02]} 7. g4 {[%clk 0:03:02]}  Bb7 {[%clk 0:03:02]} 8. a4 {[%clk 0:03:01]}  b4 {[%clk 0:03:01]} 9. Nd5 {[%clk 0:03:01]}  Nxd5 {[%clk 0:02:41]} 10. exd5 {[%clk 0:03:01]}  g6 {[%clk 0:02:41]} 11. Bg2 {[%clk 0:03:00]}  Qc7 {[%clk 0:02:38]} 12. Be3 {[%clk 0:02:59]}  Bg7 {[%clk 0:02:39]} 13. Qd2 {[%clk 0:03:00]}  O-O {[%clk 0:02:37]} 14. Bh6 {[%clk 0:03:00]}  Rc8 {[%clk 0:02:34]} 15. Bxg7 {[%clk 0:02:59]}  Kxg7 {[%clk 0:02:34]} 16. Be4 {[%clk 0:02:59]}  Nd7 {[%clk 0:02:33]} 17. Qg5 {[%clk 0:02:51]}  Nc5 {[%clk 0:02:26]} 18. f3 {[%clk 0:02:47]}  e5 {[%clk 0:02:13]} 19. Nf5+ {[%clk 0:02:41]}  Kf8 {[%clk 0:02:05]} 20. Qf6 {[%clk 0:02:06]}  gxf5 {[%clk 0:02:04]} 21. gxf5 {[%clk 0:02:07]}  Nxe4 {[%clk 0:02:00]} 22. fxe4 {[%clk 0:02:07]}  Qxc2 {[%clk 0:01:51]} 23. Qxd6+ {[%clk 0:02:06]} 1-0


[Site "https://www.chess.com"]

[Event "Titled Tuesday Blitz July 11 Late 2023"]
[White "Firouzja, Alireza"]
[Black "Boruchovsky, Avital"]
[WhiteFideId "12573981"]
[BlackFideId "2800055"]
[WhiteElo "3087"]
[BlackElo "2746"]
[Result "1-0"]
[Round "3"]
[TimeControl "180+2"]
[Date "2023.07.11"]
[WhiteClock "0:00:53"]
[BlackClock "0:00:06"]
[Board "6"]

1. d4 {[%clk 0:02:57]}  Nf6 {[%clk 0:02:59]} 2. c4 {[%clk 0:02:56]}  e6 {[%clk 0:02:57]} 3. Nc3 {[%clk 0:02:55]}  Bb4 {[%clk 0:02:56]} 4. Nf3 {[%clk 0:02:52]}  O-O {[%clk 0:02:55]} 5. g3 {[%clk 0:02:51]}  d5 {[%clk 0:02:54]} 6. cxd5 {[%clk 0:02:50]}  exd5 {[%clk 0:02:52]} 7. Bg2 {[%clk 0:02:51]}  c6 {[%clk 0:02:52]} 8. O-O {[%clk 0:02:51]}  Re8 {[%clk 0:02:52]} 9. a3 {[%clk 0:02:49]}  Bd6 {[%clk 0:02:52]} 10. Bf4 {[%clk 0:02:43]}  Bxf4 {[%clk 0:02:48]} 11. gxf4 {[%clk 0:02:44]}  Nbd7 {[%clk 0:02:39]} 12. Ne5 {[%clk 0:02:42]}  Nf8 {[%clk 0:02:39]} 13. e3 {[%clk 0:02:38]}  N6d7 {[%clk 0:02:36]} 14. Qh5 {[%clk 0:02:32]}  Ng6 {[%clk 0:02:36]} 15. Kh1 {[%clk 0:02:25]}  Ndf8 {[%clk 0:02:27]} 16. Rg1 {[%clk 0:02:18]}  f6 {[%clk 0:02:27]} 17. Nd3 {[%clk 0:01:54]}  Qd7 {[%clk 0:02:03]} 18. Nc5 {[%clk 0:01:46]}  Qf7 {[%clk 0:01:57]} 19. Nxd5 {[%clk 0:01:21]}  b6 {[%clk 0:01:55]} 20. Ne4 {[%clk 0:01:21]}  Rxe4 {[%clk 0:01:36]} 21. Bxe4 {[%clk 0:01:21]}  cxd5 {[%clk 0:01:32]} 22. Qxd5 {[%clk 0:01:22]}  Rb8 {[%clk 0:01:21]} 23. Qxf7+ {[%clk 0:01:22]}  Kxf7 {[%clk 0:01:22]} 24. Rac1 {[%clk 0:01:22]}  Ne7 {[%clk 0:01:12]} 25. Rc7 {[%clk 0:01:20]}  a5 {[%clk 0:00:54]} 26. d5 {[%clk 0:01:16]}  Bb7 {[%clk 0:00:31]} 27. Rxb7 {[%clk 0:01:03]}  Rxb7 {[%clk 0:00:30]} 28. d6 {[%clk 0:01:04]}  Rd7 {[%clk 0:00:29]} 29. dxe7 {[%clk 0:01:04]}  Rxe7 {[%clk 0:00:30]} 30. Bd5+ {[%clk 0:01:04]}  Ke8 {[%clk 0:00:27]} 31. Rc1 {[%clk 0:01:04]}  Kd8 {[%clk 0:00:18]} 32. Rc6 {[%clk 0:01:04]}  Nd7 {[%clk 0:00:18]} 33. Be6 {[%clk 0:01:04]}  Nc5 {[%clk 0:00:16]} 34. f5 {[%clk 0:00:53]}  Nd3 {[%clk 0:00:06]} 35. Rd6+ {[%clk 0:00:53]} 1-0


[Site "https://www.chess.com"]